{"text_format":"3","workbook":"xlsx","n_sheets":1,"sheets":["Протокол ШЭ ВОШ по предмету"],"not_rendered":{"external_links":1,"defined_names":1},"read":"whole","date_system":"1900"}

{"sheet":"Протокол ШЭ ВОШ по предмету","index":0,"n_rows":27,"n_cols":15,"rows_kept":27}
["№","Фамилия","Имя","Отчество","Дата рождения","Пол","Участник с ОВЗ (да/нет)","Класс обучения","Класс участия","Балл","Максимальный балл","Статус","Призёр муниципального этапа прошлого года","ФИО учителя","Место работы учителя"]
[1,"Магсумов","Карим","Ахтямович","2011-03-09","М","нет",5,5,14,50,"Участник ","нет","Жандаров Шаукат Шамилевич","Муниципальное бюджетное общеобразовательное учреждение \"МБОУ АСОШ №2\" г.Арск Республики Татарстан"]
[2,"Садыков","Арсений","Арнольдович","2011-05-31","М","нет",5,5,12,50,"Участник ","нет","Жандаров Шаукат Шамилевич","Муниципальное бюджетное общеобразовательное учреждение \"МБОУ АСОШ №2\" г.Арск Республики Татарстан"]
[3,"Насифуллина","Эльвира ","Маратовна","2011-07-08","ж","нет",5,5,13,50,"Участник ","нет","Жандаров Шаукат Шамилевич","Муниципальное бюджетное общеобразовательное учреждение \"МБОУ АСОШ №2\" г.Арск Республики Татарстан"]
[4,"Насыбуллин","Искандер","Маратович","2011-08-05","М","нет",5,5,10,50,"Участник ","нет","Жандаров Шаукат Шамилевич","Муниципальное бюджетное общеобразовательное учреждение \"МБОУ АСОШ №2\" г.Арск Республики Татарстан"]
[5,"Хисматуллин","Ислам","Фанилевич","2011-06-04","М","нет",5,5,9,50,"Участник ","нет","Жандаров Шаукат Шамилевич","Муниципальное бюджетное общеобразовательное учреждение \"МБОУ АСОШ №2\" г.Арск Республики Татарстан"]
[6,"Батыршина ","Исламия ","Рустемовна","2010-01-04","ж","нет",6,6,20,50,{"$f":"L6","v":"Участник "},{"$f":"M6","v":"нет"},{"$f":"N6","v":"Жандаров Шаукат Шамилевич"},{"$f":"O6","v":"Муниципальное бюджетное общеобразовательное учреждение \"МБОУ АСОШ №2\" г.Арск Республики Татарстан"}]
[7,"Гайфуллина ","Ильвина ","Ирековна","2010-07-23","ж","нет",6,6,17,50,"Участник ","нет","Жандаров Шаукат Шамилевич","Муниципальное бюджетное общеобразовательное учреждение \"МБОУ АСОШ №2\" г.Арск Республики Татарстан"]
[8,"Журавлева ","Яна","Ильдусовна","2010-06-03","ж","нет",6,6,15,50,{"$f":"L7","v":"Участник "},"нет","Жандаров Шаукат Шамилевич","Муниципальное бюджетное общеобразовательное учреждение \"МБОУ АСОШ №2\" г.Арск Республики Татарстан"]
[9,"Степанова ","Лилиана","Вадимовна","2010-04-01","ж","нет",6,6,19,50,"Участник ","нет","Жандаров Шаукат Шамилевич","Муниципальное бюджетное общеобразовательное учреждение \"МБОУ АСОШ №2\" г.Арск Республики Татарстан"]
[10,"Абдуллина ","Тансылу ","Фанисовна","2010-05-30","ж","нет",6,6,18,50,"Участник ","нет","Жандаров Шаукат Шамилевич","Муниципальное бюджетное общеобразовательное учреждение \"МБОУ АСОШ №2\" г.Арск Республики Татарстан"]
[11,"Насифуллин","Алмаз ","Маратович","2009-07-15",{"$f":"F13","v":"М"},{"$f":"G13","v":"нет"},{"$f":"H13","v":7},{"$f":"I13","v":7},23,70,"участник",{"$f":"M13","v":"нет"},{"$f":"N13","v":"Жандаров Шаукат Шамилевич"},{"$f":"O13","v":"Муниципальное бюджетное общеобразовательное учреждение \"МБОУ АСОШ №2\" г.Арск Республики Татарстан"}]
[12,"Гилязиев","Булат","Ленарович","2009-06-29",{"$f":"F6","v":"М"},{"$f":"G6","v":"нет"},7,7,20,70,"участник",{"$f":"M6","v":"нет"},{"$f":"N6","v":"Жандаров Шаукат Шамилевич"},{"$f":"O6","v":"Муниципальное бюджетное общеобразовательное учреждение \"МБОУ АСОШ №2\" г.Арск Республики Татарстан"}]
[13,"Зайнуллин ","Мурат","Марселевич","2009-06-07",{"$f":"F13","v":"М"},"нет",7,7,19,70,"участник",{"$f":"M13","v":"нет"},"Жандаров Шаукат Шамилевич","Муниципальное бюджетное общеобразовательное учреждение \"МБОУ АСОШ №2\" г.Арск Республики Татарстан"]
[14,"Файзуллаев ","Аслан","Фарходович","2009-10-30","М","нет",7,7,22,70,{"$f":"L14","v":"участник"},"нет","Жандаров Шаукат Шамилевич","Муниципальное бюджетное общеобразовательное учреждение \"МБОУ АСОШ №2\" г.Арск Республики Татарстан"]
[15,"Асхабова ","Ясмин","Таусовна","2008-08-14","ж",{"$f":"'[1]Протокол ШЭ ВОШ по предмету'!G7","v":"нет"},8,8,15,70,{"$f":"'[1]Протокол ШЭ ВОШ по предмету'!L7","v":"Участник"},{"$f":"'[1]Протокол ШЭ ВОШ по предмету'!M7","v":"нет"},"Жандаров Шаукат Шамилевич",{"$f":"'[1]Протокол ШЭ ВОШ по предмету'!O7","v":"Муниципальное бюджетное общеобразовательное учреждение \"МБОУ АСОШ №2\" г.Арск Республики Татарстан"}]
[16,"Гараев","Аскар","Харисович","2008-07-04",{"$f":"'[1]Протокол ШЭ ВОШ по предмету'!F7","v":"М"},{"$f":"'[1]Протокол ШЭ ВОШ по предмету'!G7","v":"нет"},8,8,16,70,{"$f":"'[1]Протокол ШЭ ВОШ по предмету'!L8","v":"Участник"},{"$f":"'[1]Протокол ШЭ ВОШ по предмету'!M7","v":"нет"},"Жандаров Шаукат Шамилевич",{"$f":"'[1]Протокол ШЭ ВОШ по предмету'!O7","v":"Муниципальное бюджетное общеобразовательное учреждение \"МБОУ АСОШ №2\" г.Арск Республики Татарстан"}]
[17,"Ситдиков","Раиль","Рашитович","2008-09-15",{"$f":"'[1]Протокол ШЭ ВОШ по предмету'!F9","v":"М"},{"$f":"'[1]Протокол ШЭ ВОШ по предмету'!G9","v":"нет"},{"$f":"H17","v":8},{"$f":"I17","v":8},20,70,{"$f":"'[1]Протокол ШЭ ВОШ по предмету'!L9","v":"Участник"},{"$f":"M17","v":"нет"},{"$f":"N17","v":"Жандаров Шаукат Шамилевич"},{"$f":"O17","v":"Муниципальное бюджетное общеобразовательное учреждение \"МБОУ АСОШ №2\" г.Арск Республики Татарстан"}]
[18,{"$f":"'[1]Протокол ШЭ ВОШ по предмету'!B10","v":"Шакирова "},{"$f":"'[1]Протокол ШЭ ВОШ по предмету'!C10","v":"Самира"},{"$f":"'[1]Протокол ШЭ ВОШ по предмету'!D10","v":"Рустемовна"},"2008-09-11","ж",{"$f":"'[1]Протокол ШЭ ВОШ по предмету'!G10","v":"нет"},{"$f":"'[1]Протокол ШЭ ВОШ по предмету'!H10","v":8},{"$f":"'[1]Протокол ШЭ ВОШ по предмету'!I10","v":8},24,70,"участник",{"$f":"'[1]Протокол ШЭ ВОШ по предмету'!M10","v":"нет"},{"$f":"'[1]Протокол ШЭ ВОШ по предмету'!N10","v":"Жандаров Шаукат Шамилевич"},{"$f":"'[1]Протокол ШЭ ВОШ по предмету'!O10","v":"Муниципальное бюджетное общеобразовательное учреждение \"МБОУ АСОШ №2\" г.Арск Республики Татарстан"}]
[19,"Ахметгалимов","Ислам","Айдарович","2008-02-20",{"$f":"'[1]Протокол ШЭ ВОШ по предмету'!F8","v":"М"},{"$f":"'[1]Протокол ШЭ ВОШ по предмету'!G8","v":"нет"},9,9,31,100,{"$f":"'[1]Протокол ШЭ ВОШ по предмету'!L8","v":"Участник"},{"$f":"'[1]Протокол ШЭ ВОШ по предмету'!M8","v":"нет"},{"$f":"'[1]Протокол ШЭ ВОШ по предмету'!N8","v":"Жандаров Шаукат Шамилевич"},{"$f":"'[1]Протокол ШЭ ВОШ по предмету'!O8","v":"Муниципальное бюджетное общеобразовательное учреждение \"МБОУ АСОШ №2\" г.Арск Республики Татарстан"}]
[20,"Бирючевская","Диана","Валериевна","2007-11-02","ж",{"$f":"'[1]Протокол ШЭ ВОШ по предмету'!G9","v":"нет"},9,9,28,100,{"$f":"'[1]Протокол ШЭ ВОШ по предмету'!L9","v":"Участник"},{"$f":"'[1]Протокол ШЭ ВОШ по предмету'!M9","v":"нет"},{"$f":"'[1]Протокол ШЭ ВОШ по предмету'!N9","v":"Жандаров Шаукат Шамилевич"},{"$f":"'[1]Протокол ШЭ ВОШ по предмету'!O9","v":"Муниципальное бюджетное общеобразовательное учреждение \"МБОУ АСОШ №2\" г.Арск Республики Татарстан"}]
[21,{"$f":"'[1]Протокол ШЭ ВОШ по предмету'!B9","v":"Комаров"},{"$f":"'[1]Протокол ШЭ ВОШ по предмету'!C9","v":"Руслан"},{"$f":"'[1]Протокол ШЭ ВОШ по предмету'!D9","v":" Евгеньевич"},"2007-03-05",{"$f":"'[1]Протокол ШЭ ВОШ по предмету'!F9","v":"М"},{"$f":"'[1]Протокол ШЭ ВОШ по предмету'!G9","v":"нет"},{"$f":"'[1]Протокол ШЭ ВОШ по предмету'!H9","v":9},{"$f":"'[1]Протокол ШЭ ВОШ по предмету'!I9","v":9},25,100,{"$f":"'[1]Протокол ШЭ ВОШ по предмету'!L9","v":"Участник"},{"$f":"'[1]Протокол ШЭ ВОШ по предмету'!M9","v":"нет"},{"$f":"'[1]Протокол ШЭ ВОШ по предмету'!N9","v":"Жандаров Шаукат Шамилевич"},{"$f":"'[1]Протокол ШЭ ВОШ по предмету'!O9","v":"Муниципальное бюджетное общеобразовательное учреждение \"МБОУ АСОШ №2\" г.Арск Республики Татарстан"}]
[22,"Сабирова","Зарина","Маратовна","2006-08-31","ж","нет",10,10,73,100,"победитель","нет","Хуснутдинова Гулсара ХасановнаАСОШ №2","Муниципальное бюджетное общеобразовательное учреждение \"МБОУ АСОШ №2\" г.Арск Республики Татарстан"]
[23,"Гарифзянова","Камиля","Эльнаровна","2006-05-29","ж","нет",10,10,72,100,"призер","нет","Хуснутдинова Гулсара ХасановнаАСОШ №2","Муниципальное бюджетное общеобразовательное учреждение \"МБОУ АСОШ №2\" г.Арск Республики Татарстан"]
[24,"Зиннатуллин","Нияз","Айратович","2006-04-15","м","нет",10,10,69,100,"призер","нет","Хуснутдинова Гулсара ХасановнаАСОШ №2","Муниципальное бюджетное общеобразовательное учреждение \"МБОУ АСОШ №2\" г.Арск Республики Татарстан"]
[25,"Комарова","Анжелина","Евгениевна","2005-08-02","ж","нет",11,11,78,100,"победитель","да","Хуснутдинова Гулсара ХасановнаАСОШ №2","Муниципальное бюджетное общеобразовательное учреждение \"МБОУ АСОШ №2\" г.Арск Республики Татарстан"]
[26,"Закирова","Диана","Рамилевна","2005-02-21","ж","нет",11,11,71,100,"призер","да","Хуснутдинова Гулсара ХасановнаАСОШ №2","Муниципальное бюджетное общеобразовательное учреждение \"МБОУ АСОШ №2\" г.Арск Республики Татарстан"]